[Event "Titled Tuesday Blitz July 20 2021"]
[White "Bartel, Mateusz"]
[Black "Khusnutdinov, Rustam"]
[WhiteFideId "1112635"]
[BlackFideId "13701703"]
[WhiteElo "2586"]
[BlackElo "2571"]
[Result "0-1"]
[Round "07"]
[TimeControl "180+1"]
[Date "2021.07.20"]
[WhiteClock "0:00:03"]
[BlackClock "0:00:21"]

1. e4 {[%clk 0:03:00]}  e6 {[%clk 0:02:58]} 2. Qe2 {[%clk 0:02:57]}  c5 {[%clk 0:02:58]} 3. Nf3 {[%clk 0:02:55]}  Nc6 {[%clk 0:02:58]} 4. g3 {[%clk 0:02:52]}  g6 {[%clk 0:02:57]} 5. Bg2 {[%clk 0:02:47]}  Bg7 {[%clk 0:02:58]} 6. c3 {[%clk 0:02:46]}  e5 {[%clk 0:02:51]} 7. d3 {[%clk 0:02:39]}  Nge7 {[%clk 0:02:51]} 8. Na3 {[%clk 0:02:32]}  O-O {[%clk 0:02:48]} 9. O-O {[%clk 0:02:31]}  d6 {[%clk 0:02:48]} 10. Nc4 {[%clk 0:02:25]}  h6 {[%clk 0:02:39]} 11. a4 {[%clk 0:02:24]}  Be6 {[%clk 0:02:31]} 12. Nfd2 {[%clk 0:02:19]}  Qd7 {[%clk 0:02:29]} 13. Nb3 {[%clk 0:02:07]}  f5 {[%clk 0:02:19]} 14. f4 {[%clk 0:02:04]}  exf4 {[%clk 0:02:07]} 15. Bxf4 {[%clk 0:02:02]}  g5 {[%clk 0:02:05]} 16. Be3 {[%clk 0:01:48]}  Rae8 {[%clk 0:01:59]} 17. Rae1 {[%clk 0:01:37]}  b6 {[%clk 0:01:54]} 18. Ncd2 {[%clk 0:01:18]}  d5 {[%clk 0:01:46]} 19. exf5 {[%clk 0:01:14]}  Nxf5 {[%clk 0:01:43]} 20. Bf2 {[%clk 0:01:10]}  d4 {[%clk 0:01:38]} 21. Qd1 {[%clk 0:00:57]}  dxc3 {[%clk 0:01:36]} 22. bxc3 {[%clk 0:00:58]}  Ne5 {[%clk 0:01:35]} 23. d4 {[%clk 0:00:45]}  Nd3 {[%clk 0:01:29]} 24. Rxe6 {[%clk 0:00:44]}  Qxe6 {[%clk 0:01:21]} 25. d5 {[%clk 0:00:41]}  Qe2 {[%clk 0:01:15]} 26. Qxe2 {[%clk 0:00:25]}  Rxe2 {[%clk 0:01:16]} 27. Bf3 {[%clk 0:00:24]}  Rxf2 {[%clk 0:01:13]} 28. Rxf2 {[%clk 0:00:25]}  Nxf2 {[%clk 0:01:13]} 29. Kxf2 {[%clk 0:00:26]}  Bxc3 {[%clk 0:01:14]} 30. Ne4 {[%clk 0:00:23]}  g4 {[%clk 0:01:00]} 31. Bxg4 {[%clk 0:00:16]}  Nd6+ {[%clk 0:00:58]} 32. Ke3 {[%clk 0:00:15]}  Nc4+ {[%clk 0:00:51]} 33. Ke2 {[%clk 0:00:14]}  Be5 {[%clk 0:00:46]} 34. Be6+ {[%clk 0:00:14]}  Kg7 {[%clk 0:00:47]} 35. Kd3 {[%clk 0:00:11]}  Nd6 {[%clk 0:00:47]} 36. Nxd6 {[%clk 0:00:11]}  Bxd6 {[%clk 0:00:48]} 37. Nd2 {[%clk 0:00:12]}  Kf6 {[%clk 0:00:47]} 38. Nc4 {[%clk 0:00:10]}  Ke7 {[%clk 0:00:47]} 39. Ke2 {[%clk 0:00:11]}  Rb8 {[%clk 0:00:46]} 40. Ne3 {[%clk 0:00:11]}  Be5 {[%clk 0:00:44]} 41. Nf5+ {[%clk 0:00:10]}  Kf6 {[%clk 0:00:42]} 42. Nxh6 {[%clk 0:00:11]}  Bd6 {[%clk 0:00:39]} 43. Ng4+ {[%clk 0:00:11]}  Ke7 {[%clk 0:00:39]} 44. Ne3 {[%clk 0:00:11]}  Kf6 {[%clk 0:00:37]} 45. Ng4+ {[%clk 0:00:11]}  Ke7 {[%clk 0:00:37]} 46. Ne3 {[%clk 0:00:11]}  Be5 {[%clk 0:00:38]} 47. Nf5+ {[%clk 0:00:11]}  Kf6 {[%clk 0:00:38]} 48. Ne3 {[%clk 0:00:10]}  Bc7 {[%clk 0:00:36]} 49. Kf3 {[%clk 0:00:04]}  a6 {[%clk 0:00:36]} 50. h4 {[%clk 0:00:04]}  b5 {[%clk 0:00:37]} 51. axb5 {[%clk 0:00:05]}  axb5 {[%clk 0:00:37]} 52. g4 {[%clk 0:00:05]}  b4 {[%clk 0:00:36]} 53. g5+ {[%clk 0:00:06]}  Ke5 {[%clk 0:00:29]} 54. Nc4+ {[%clk 0:00:06]}  Kd4 {[%clk 0:00:29]} 55. d6 {[%clk 0:00:07]}  Bxd6 {[%clk 0:00:30]} 56. Nxd6 {[%clk 0:00:07]}  Rb6 {[%clk 0:00:27]} 57. Nf5+ {[%clk 0:00:07]}  Ke5 {[%clk 0:00:27]} 58. Bd7 {[%clk 0:00:04]}  b3 {[%clk 0:00:27]} 59. Ne3 {[%clk 0:00:03]}  b2 {[%clk 0:00:22]} 60. Bf5 {[%clk 0:00:01]}  Rb3 {[%clk 0:00:21]} 61. Bb1 {[%clk 0:00:02]}  Kd4 {[%clk 0:00:21]} 62. Kf4 {[%clk 0:00:02]}  Rxe3 {[%clk 0:00:21]} 63. g6 {[%clk 0:00:03]}  Re1 {[%clk 0:00:21]} 64. g7 {[%clk 0:00:03]}  Rg1 {[%clk 0:00:21]} 0-1


[Site "https://www.chess.com"]

[Event "Titled Tuesday Blitz July 20 2021"]
[White "Boidiya, Sidi"]
[Black "Taichman, Ori"]
[WhiteFideId "19600100"]
[BlackFideId "2804069"]
[WhiteElo "2113"]
[BlackElo "2227"]
[Result "0-1"]
[Round "07"]
[TimeControl "180+1"]
[Date "2021.07.21"]
[WhiteClock "0:01:34"]
[BlackClock "0:01:38"]

1. e4 {[%clk 0:02:52]}  c5 {[%clk 0:02:59]} 2. Nc3 {[%clk 0:02:52]}  Nc6 {[%clk 0:02:59]} 3. g3 {[%clk 0:02:52]}  Rb8 {[%clk 0:02:59]} 4. Bg2 {[%clk 0:02:53]}  b5 {[%clk 0:02:59]} 5. d3 {[%clk 0:02:53]}  b4 {[%clk 0:02:58]} 6. Nd5 {[%clk 0:02:52]}  e6 {[%clk 0:02:58]} 7. Ne3 {[%clk 0:02:52]}  Nf6 {[%clk 0:02:57]} 8. Ne2 {[%clk 0:02:51]}  d5 {[%clk 0:02:57]} 9. exd5 {[%clk 0:02:50]}  Nxd5 {[%clk 0:02:54]} 10. Nxd5 {[%clk 0:02:50]}  exd5 {[%clk 0:02:55]} 11. O-O {[%clk 0:02:48]}  Be7 {[%clk 0:02:53]} 12. Nf4 {[%clk 0:02:47]}  Be6 {[%clk 0:02:43]} 13. Re1 {[%clk 0:02:44]}  Qd7 {[%clk 0:02:27]} 14. Nxe6 {[%clk 0:02:35]}  fxe6 {[%clk 0:02:27]} 15. Qg4 {[%clk 0:02:33]}  O-O {[%clk 0:02:10]} 16. Bh3 {[%clk 0:02:29]}  Nd4 {[%clk 0:02:09]} 17. Bh6 {[%clk 0:02:19]}  Bf6 {[%clk 0:01:56]} 18. c3 {[%clk 0:02:18]}  Nc2 {[%clk 0:01:47]} 19. Rxe6 {[%clk 0:01:53]}  Nxa1 {[%clk 0:01:43]} 20. Rxf6 {[%clk 0:01:35]}  Qxg4 {[%clk 0:01:41]} 21. Rxf8+ {[%clk 0:01:34]}  Rxf8 {[%clk 0:01:38]} 22. Bxg4 {[%clk 0:01:34]}  gxh6 {[%clk 0:01:38]} 0-1


[Site "https://www.chess.com"]

[Event "Titled Tuesday Blitz July 20 2021"]
[White "Chen, Max"]
[Black "Stribuk, Artiom"]
[WhiteFideId "2622440"]
[BlackFideId "13515659"]
[WhiteElo "2427"]
[BlackElo "2224"]
[Result "1-0"]
[Round "07"]
[TimeControl "180+1"]
[Date "2021.07.21"]
[WhiteClock "0:00:03"]
[BlackClock "0:00:02"]

1. e4 {[%clk 0:02:58]}  c5 {[%clk 0:02:57]} 2. Nf3 {[%clk 0:02:57]}  Nc6 {[%clk 0:02:45]} 3. d4 {[%clk 0:02:56]}  cxd4 {[%clk 0:02:45]} 4. Nxd4 {[%clk 0:02:55]}  Nf6 {[%clk 0:02:46]} 5. Nc3 {[%clk 0:02:53]}  e5 {[%clk 0:02:46]} 6. Nb3 {[%clk 0:02:49]}  Bb4 {[%clk 0:02:44]} 7. Qd3 {[%clk 0:02:40]}  O-O {[%clk 0:02:34]} 8. Bd2 {[%clk 0:02:34]}  Bxc3 {[%clk 0:02:12]} 9. Bxc3 {[%clk 0:02:15]}  d5 {[%clk 0:02:12]} 10. exd5 {[%clk 0:02:11]}  Nxd5 {[%clk 0:02:10]} 11. O-O-O {[%clk 0:02:06]}  Nxc3 {[%clk 0:02:07]} 12. Qxc3 {[%clk 0:02:04]}  Qg5+ {[%clk 0:02:05]} 13. Kb1 {[%clk 0:02:03]}  Bf5 {[%clk 0:02:03]} 14. h4 {[%clk 0:01:40]}  Qf4 {[%clk 0:01:44]} 15. Bc4 {[%clk 0:00:53]}  Rac8 {[%clk 0:01:28]} 16. g3 {[%clk 0:00:51]}  Qxf2 {[%clk 0:00:54]} 17. Rhf1 {[%clk 0:00:46]}  Qxc2+ {[%clk 0:00:50]} 18. Qxc2 {[%clk 0:00:40]}  Bxc2+ {[%clk 0:00:50]} 19. Kxc2 {[%clk 0:00:40]}  Nb4+ {[%clk 0:00:20]} 20. Kc3 {[%clk 0:00:31]}  Nxa2+ {[%clk 0:00:20]} 21. Kd3 {[%clk 0:00:31]}  Nb4+ {[%clk 0:00:20]} 22. Kc3 {[%clk 0:00:27]}  Na2+ {[%clk 0:00:20]} 23. Kd3 {[%clk 0:00:27]}  h6 {[%clk 0:00:10]} 24. Bd5 {[%clk 0:00:19]}  Nb4+ {[%clk 0:00:10]} 25. Ke4 {[%clk 0:00:18]}  Nxd5 {[%clk 0:00:10]} 26. Rxd5 {[%clk 0:00:18]}  Rc2 {[%clk 0:00:08]} 27. Rd2 {[%clk 0:00:14]}  Rfc8 {[%clk 0:00:06]} 28. Rfd1 {[%clk 0:00:10]}  f6 {[%clk 0:00:05]} 29. Rxc2 {[%clk 0:00:10]}  Rxc2 {[%clk 0:00:05]} 30. Rd2 {[%clk 0:00:10]}  Rc4+ {[%clk 0:00:06]} 31. Kd5 {[%clk 0:00:07]}  Rg4 {[%clk 0:00:05]} 32. Rd3 {[%clk 0:00:07]}  h5 {[%clk 0:00:06]} 33. Ke6 {[%clk 0:00:07]}  Kh7 {[%clk 0:00:06]} 34. Nc5 {[%clk 0:00:07]}  b6 {[%clk 0:00:06]} 35. Nd7 {[%clk 0:00:07]}  e4 {[%clk 0:00:04]} 36. Re3 {[%clk 0:00:06]}  Kg8 {[%clk 0:00:03]} 37. Nb8 {[%clk 0:00:04]}  a5 {[%clk 0:00:02]} 38. Nd7 {[%clk 0:00:03]}  Kh7 {[%clk 0:00:02]} 39. Nxb6 {[%clk 0:00:03]}  g5 {[%clk 0:00:02]} 40. hxg5 {[%clk 0:00:03]}  fxg5 {[%clk 0:00:02]} 41. Kf5 {[%clk 0:00:03]}  Kh6 {[%clk 0:00:02]} 42. Nc4 {[%clk 0:00:03]}  Kg7 {[%clk 0:00:02]} 43. Ne5 {[%clk 0:00:03]}  Rxg3 {[%clk 0:00:01]} 44. Rxg3 {[%clk 0:00:03]}  Kh6 {[%clk 0:00:02]} 45. Rxg5 {[%clk 0:00:03]} 1-0


[Site "https://www.chess.com"]

[Event "Titled Tuesday Blitz July 20 2021"]
[White "Chigaev, Maksim"]
[Black "LuckSlayeer"]
[WhiteFideId "4108116"]
[WhiteElo "2646"]
[BlackElo "2572"]
[Result "1-0"]
[Round "07"]
[TimeControl "180+1"]
[Date "2021.07.20"]
[WhiteClock "0:00:05"]
[BlackClock "0:00:01"]

1. d4 {[%clk 0:03:00]}  Nf6 {[%clk 0:02:59]} 2. c4 {[%clk 0:02:57]}  e6 {[%clk 0:03:00]} 3. Nf3 {[%clk 0:02:57]}  d5 {[%clk 0:03:00]} 4. g3 {[%clk 0:02:56]}  dxc4 {[%clk 0:02:56]} 5. Bg2 {[%clk 0:02:55]}  a6 {[%clk 0:02:57]} 6. a4 {[%clk 0:02:47]}  Nc6 {[%clk 0:02:51]} 7. O-O {[%clk 0:02:46]}  Bb4 {[%clk 0:02:36]} 8. Nc3 {[%clk 0:02:44]}  O-O {[%clk 0:02:29]} 9. Bg5 {[%clk 0:02:43]}  h6 {[%clk 0:02:18]} 10. Bxf6 {[%clk 0:02:43]}  Qxf6 {[%clk 0:02:19]} 11. e3 {[%clk 0:02:43]}  Rb8 {[%clk 0:02:07]} 12. Nd2 {[%clk 0:02:41]}  Na5 {[%clk 0:01:59]} 13. Qc2 {[%clk 0:02:34]}  b5 {[%clk 0:01:54]} 14. axb5 {[%clk 0:02:29]}  axb5 {[%clk 0:01:55]} 15. Nde4 {[%clk 0:02:17]}  Qe7 {[%clk 0:01:52]} 16. Nc5 {[%clk 0:02:09]}  c6 {[%clk 0:00:49]} 17. N5e4 {[%clk 0:01:13]}  Nb3 {[%clk 0:00:44]} 18. Ra2 {[%clk 0:01:01]}  c5 {[%clk 0:00:36]} 19. d5 {[%clk 0:00:51]}  exd5 {[%clk 0:00:25]} 20. Nxd5 {[%clk 0:00:49]}  Qe5 {[%clk 0:00:26]} 21. f4 {[%clk 0:00:36]}  Qe6 {[%clk 0:00:17]} 22. f5 {[%clk 0:00:33]}  Qe5 {[%clk 0:00:10]} 23. g4 {[%clk 0:00:29]}  Kh8 {[%clk 0:00:08]} 24. Nf4 {[%clk 0:00:18]}  Bb7 {[%clk 0:00:07]} 25. Ra7 {[%clk 0:00:18]}  Bxe4 {[%clk 0:00:04]} 26. Bxe4 {[%clk 0:00:18]}  Bd2 {[%clk 0:00:04]} 27. Kg2 {[%clk 0:00:08]}  Bxe3 {[%clk 0:00:04]} 28. Nd5 {[%clk 0:00:05]}  Nd4 {[%clk 0:00:04]} 29. Qb1 {[%clk 0:00:05]}  Bg5 {[%clk 0:00:03]} 30. f6 {[%clk 0:00:04]}  Rfe8 {[%clk 0:00:01]} 31. Re7 {[%clk 0:00:04]}  Rxe7 {[%clk 0:00:01]} 32. fxe7 {[%clk 0:00:05]}  Re8 {[%clk 0:00:01]} 33. Rxf7 {[%clk 0:00:05]}  Bxe7 {[%clk 0:00:01]} 34. Nxe7 {[%clk 0:00:04]}  Ne6 {[%clk 0:00:01]} 35. Ng6+ {[%clk 0:00:04]}  Kg8 {[%clk 0:00:01]} 36. Nxe5 {[%clk 0:00:05]} 1-0


[Site "https://www.chess.com"]

[Event "Titled Tuesday Blitz July 20 2021"]
[White "Dardha, Daniel"]
[Black "FGHSMN"]
[WhiteFideId "240990"]
[WhiteElo "2489"]
[BlackElo "2533"]
[Result "1-0"]
[Round "07"]
[TimeControl "180+1"]
[Date "2021.07.21"]
[WhiteClock "0:00:19"]
[BlackClock "0:00:04"]

1. d4 {[%clk 0:03:00]}  Nf6 {[%clk 0:02:58]} 2. c4 {[%clk 0:02:54]}  e6 {[%clk 0:02:56]} 3. Nc3 {[%clk 0:02:52]}  c5 {[%clk 0:02:56]} 4. d5 {[%clk 0:02:52]}  exd5 {[%clk 0:02:57]} 5. cxd5 {[%clk 0:02:53]}  d6 {[%clk 0:02:57]} 6. e4 {[%clk 0:02:53]}  g6 {[%clk 0:02:57]} 7. h3 {[%clk 0:02:54]}  Bg7 {[%clk 0:02:54]} 8. Bd3 {[%clk 0:02:55]}  O-O {[%clk 0:02:54]} 9. Nf3 {[%clk 0:02:55]}  b5 {[%clk 0:02:54]} 10. Nxb5 {[%clk 0:02:50]}  Re8 {[%clk 0:02:54]} 11. Nd2 {[%clk 0:02:47]}  Nxd5 {[%clk 0:02:53]} 12. Nc4 {[%clk 0:02:42]}  Nb4 {[%clk 0:02:45]} 13. Ncxd6 {[%clk 0:02:41]}  Nxd3+ {[%clk 0:02:32]} 14. Qxd3 {[%clk 0:02:42]}  Ba6 {[%clk 0:02:33]} 15. Qd5 {[%clk 0:02:07]}  Bxb5 {[%clk 0:02:21]} 16. Qxf7+ {[%clk 0:01:50]}  Kh8 {[%clk 0:02:17]} 17. Nxe8 {[%clk 0:01:39]}  Bxe8 {[%clk 0:02:11]} 18. Qc4 {[%clk 0:01:34]}  a6 {[%clk 0:01:55]} 19. a4 {[%clk 0:01:09]}  Qd4 {[%clk 0:01:38]} 20. Qxd4 {[%clk 0:01:07]}  Bxd4 {[%clk 0:01:38]} 21. Ke2 {[%clk 0:01:03]}  Nc6 {[%clk 0:01:36]} 22. Rb1 {[%clk 0:00:56]}  Rb8 {[%clk 0:01:33]} 23. Be3 {[%clk 0:00:51]}  Bf7 {[%clk 0:01:30]} 24. b3 {[%clk 0:00:33]}  Bxb3 {[%clk 0:01:19]} 25. Bxd4+ {[%clk 0:00:33]}  Nxd4+ {[%clk 0:01:05]} 26. Ke3 {[%clk 0:00:33]}  Rd8 {[%clk 0:00:58]} 27. Rhc1 {[%clk 0:00:33]}  Nc2+ {[%clk 0:00:54]} 28. Kf4 {[%clk 0:00:31]}  c4 {[%clk 0:00:50]} 29. a5 {[%clk 0:00:26]}  Nb4 {[%clk 0:00:48]} 30. Rc3 {[%clk 0:00:22]}  Na2 {[%clk 0:00:22]} 31. Rcxb3 {[%clk 0:00:20]}  cxb3 {[%clk 0:00:23]} 32. Rxb3 {[%clk 0:00:21]}  Nc1 {[%clk 0:00:22]} 33. Rb6 {[%clk 0:00:19]}  Nd3+ {[%clk 0:00:13]} 34. Kg3 {[%clk 0:00:20]}  Nc5 {[%clk 0:00:07]} 35. f3 {[%clk 0:00:20]}  Rd4 {[%clk 0:00:04]} 36. Rc6 {[%clk 0:00:19]} 1-0


[Site "https://www.chess.com"]

[Event "Titled Tuesday Blitz July 20 2021"]
[White "Derige Kane, Yan"]
[Black "Pein, Jonathan"]
[WhiteFideId "20665431"]
[BlackFideId "417092"]
[WhiteElo "2169"]
[BlackElo "2167"]
[Result "0-1"]
[Round "07"]
[TimeControl "180+1"]
[Date "2021.07.21"]
[WhiteClock "0:00:04"]
[BlackClock "0:00:08"]

1. d4 {[%clk 0:02:56]}  Nf6 {[%clk 0:02:58]} 2. Bg5 {[%clk 0:02:57]}  c5 {[%clk 0:02:53]} 3. d5 {[%clk 0:02:55]}  b5 {[%clk 0:02:52]} 4. Bxf6 {[%clk 0:02:52]}  gxf6 {[%clk 0:02:52]} 5. Nc3 {[%clk 0:02:52]}  b4 {[%clk 0:02:48]} 6. Ne4 {[%clk 0:02:51]}  f5 {[%clk 0:02:48]} 7. Ng3 {[%clk 0:02:51]}  d6 {[%clk 0:02:49]} 8. Nf3 {[%clk 0:02:49]}  Bg7 {[%clk 0:02:46]} 9. Qc1 {[%clk 0:02:44]}  h5 {[%clk 0:02:44]} 10. h4 {[%clk 0:02:43]}  Qa5 {[%clk 0:02:38]} 11. e3 {[%clk 0:02:42]}  Bb7 {[%clk 0:02:12]} 12. Nxf5 {[%clk 0:02:35]}  Bf6 {[%clk 0:02:11]} 13. e4 {[%clk 0:02:31]}  Nd7 {[%clk 0:02:12]} 14. Be2 {[%clk 0:02:26]}  b3+ {[%clk 0:02:08]} 15. c3 {[%clk 0:02:25]}  bxa2 {[%clk 0:02:07]} 16. O-O {[%clk 0:02:18]}  Rg8 {[%clk 0:02:07]} 17. Bc4 {[%clk 0:02:13]}  Rg4 {[%clk 0:01:54]} 18. Qe3 {[%clk 0:02:02]}  O-O-O {[%clk 0:01:53]} 19. Rxa2 {[%clk 0:02:01]}  Qb6 {[%clk 0:01:53]} 20. Rfa1 {[%clk 0:01:58]}  Rdg8 {[%clk 0:01:46]} 21. g3 {[%clk 0:01:55]}  e6 {[%clk 0:01:26]} 22. Nh6 {[%clk 0:01:41]}  exd5 {[%clk 0:01:15]} 23. Nxg8 {[%clk 0:01:25]}  dxc4 {[%clk 0:01:15]} 24. Nxf6 {[%clk 0:01:20]}  Nxf6 {[%clk 0:01:16]} 25. Qh6 {[%clk 0:01:06]}  Nxe4 {[%clk 0:01:11]} 26. Qf8+ {[%clk 0:00:56]}  Qd8 {[%clk 0:01:09]} 27. Qxf7 {[%clk 0:00:57]}  Nxg3 {[%clk 0:01:04]} 28. fxg3 {[%clk 0:00:57]}  Rxg3+ {[%clk 0:01:05]} 29. Kf2 {[%clk 0:00:56]}  Rxf3+ {[%clk 0:01:01]} 30. Qxf3 {[%clk 0:00:56]}  Bxf3 {[%clk 0:01:02]} 31. Kxf3 {[%clk 0:00:57]}  Qxh4 {[%clk 0:01:02]} 32. Rxa7 {[%clk 0:00:55]}  Qg4+ {[%clk 0:01:01]} 33. Ke3 {[%clk 0:00:56]}  Qg3+ {[%clk 0:00:55]} 34. Ke4 {[%clk 0:00:53]}  Qe5+ {[%clk 0:00:55]} 35. Kf3 {[%clk 0:00:53]}  h4 {[%clk 0:00:53]} 36. Ra8+ {[%clk 0:00:50]}  Kb7 {[%clk 0:00:36]} 37. R1a6 {[%clk 0:00:48]}  Qg3+ {[%clk 0:00:28]} 38. Ke4 {[%clk 0:00:46]}  Qg2+ {[%clk 0:00:28]} 39. Kf5 {[%clk 0:00:45]}  Qxb2 {[%clk 0:00:18]} 40. R8a7+ {[%clk 0:00:45]}  Kb8 {[%clk 0:00:18]} 41. Ra8+ {[%clk 0:00:42]}  Kc7 {[%clk 0:00:18]} 42. R8a7+ {[%clk 0:00:43]}  Kb8 {[%clk 0:00:17]} 43. Ke6 {[%clk 0:00:42]}  Qe2+ {[%clk 0:00:13]} 44. Kd7 {[%clk 0:00:33]}  Qg4+ {[%clk 0:00:10]} 45. Kc6 {[%clk 0:00:33]}  Qc8+ {[%clk 0:00:08]} 46. Kd5 {[%clk 0:00:20]}  Qf5+ {[%clk 0:00:07]} 47. Kc6 {[%clk 0:00:19]}  Qe4+ {[%clk 0:00:06]} 48. Kxd6 {[%clk 0:00:12]}  h3 {[%clk 0:00:07]} 49. Kxc5 {[%clk 0:00:10]}  h2 {[%clk 0:00:07]} 50. Rg7 {[%clk 0:00:04]}  Qe5+ {[%clk 0:00:06]} 51. Kb4 {[%clk 0:00:03]}  Qxg7 {[%clk 0:00:06]} 52. Rb6+ {[%clk 0:00:04]}  Qb7 {[%clk 0:00:06]} 53. Rxb7+ {[%clk 0:00:03]}  Kxb7 {[%clk 0:00:07]} 54. Kxc4 {[%clk 0:00:04]}  h1=Q {[%clk 0:00:08]} 0-1


[Site "https://www.chess.com"]

[Event "Titled Tuesday Blitz July 20 2021"]
[White "DieHardCuban"]
[Black "Kretov, Evgenij"]
[BlackFideId "4167821"]
[WhiteElo "2459"]
[BlackElo "2400"]
[Result "0-1"]
[Round "07"]
[TimeControl "180+1"]
[Date "2021.07.21"]
[WhiteClock "0:00:01"]
[BlackClock "0:01:10"]

1. d4 {[%clk 0:02:25]}  Nf6 {[%clk 0:02:59]} 2. c4 {[%clk 0:02:24]}  c5 {[%clk 0:02:58]} 3. d5 {[%clk 0:02:24]}  e5 {[%clk 0:02:58]} 4. Nc3 {[%clk 0:02:22]}  d6 {[%clk 0:02:58]} 5. e4 {[%clk 0:02:22]}  Be7 {[%clk 0:02:59]} 6. Bd3 {[%clk 0:02:22]}  O-O {[%clk 0:02:59]} 7. Nf3 {[%clk 0:02:22]}  Ne8 {[%clk 0:02:58]} 8. h4 {[%clk 0:02:16]}  Nd7 {[%clk 0:02:59]} 9. h5 {[%clk 0:02:16]}  h6 {[%clk 0:02:58]} 10. Be3 {[%clk 0:01:52]}  Ndf6 {[%clk 0:02:58]} 11. Nd2 {[%clk 0:01:43]}  Bg4 {[%clk 0:02:46]} 12. Be2 {[%clk 0:01:43]}  Bd7 {[%clk 0:02:45]} 13. Nf1 {[%clk 0:01:15]}  Nh7 {[%clk 0:02:43]} 14. Qd2 {[%clk 0:01:11]}  Bg5 {[%clk 0:02:43]} 15. O-O-O {[%clk 0:01:11]}  a6 {[%clk 0:02:41]} 16. g3 {[%clk 0:01:10]}  Bxe3 {[%clk 0:02:39]} 17. Nxe3 {[%clk 0:01:10]}  b5 {[%clk 0:02:39]} 18. f4 {[%clk 0:00:54]}  Qe7 {[%clk 0:02:38]} 19. Bf3 {[%clk 0:00:46]}  Nhf6 {[%clk 0:02:34]} 20. Qc2 {[%clk 0:00:39]}  Nc7 {[%clk 0:02:29]} 21. Rde1 {[%clk 0:00:32]}  Rfe8 {[%clk 0:02:15]} 22. Rhf1 {[%clk 0:00:25]}  Rab8 {[%clk 0:02:04]} 23. Ng2 {[%clk 0:00:22]}  bxc4 {[%clk 0:02:02]} 24. fxe5 {[%clk 0:00:15]}  Qxe5 {[%clk 0:02:01]} 25. Ne3 {[%clk 0:00:16]}  Nb5 {[%clk 0:01:56]} 26. Nxc4 {[%clk 0:00:15]}  Qxg3 {[%clk 0:01:56]} 27. e5 {[%clk 0:00:12]}  Nd4 {[%clk 0:01:48]} 28. Qd3 {[%clk 0:00:12]}  Bf5 {[%clk 0:01:47]} 29. Qd1 {[%clk 0:00:08]}  dxe5 {[%clk 0:01:44]} 30. d6 {[%clk 0:00:05]}  e4 {[%clk 0:01:36]} 31. Be2 {[%clk 0:00:04]}  Qg5+ {[%clk 0:01:21]} 32. Qd2 {[%clk 0:00:03]}  e3 {[%clk 0:01:20]} 33. Qd1 {[%clk 0:00:02]}  Bc2 {[%clk 0:01:19]} 34. Qxc2 {[%clk 0:00:02]}  Nxc2 {[%clk 0:01:19]} 35. Kxc2 {[%clk 0:00:02]}  Nd5 {[%clk 0:01:13]} 36. Rg1 {[%clk 0:00:02]}  Qf5+ {[%clk 0:01:10]} 37. Kc1 {[%clk 0:00:02]}  Nxc3 {[%clk 0:01:10]} 38. bxc3 {[%clk 0:00:01]}  Rb1# {[%clk 0:01:10]} 0-1


[Site "https://www.chess.com"]

[Event "Titled Tuesday Blitz July 20 2021"]
[White "Gelman, Alexander"]
[Black "Djokic, Mihailo"]
[WhiteFideId "4118316"]
[BlackFideId "976440"]
[WhiteElo "2375"]
[BlackElo "2018"]
[Result "1-0"]
[Round "07"]
[TimeControl "180+1"]
[Date "2021.07.21"]
[WhiteClock "0:00:48"]
[BlackClock "0:00:02"]

1. d4 {[%clk 0:03:00]}  Nf6 {[%clk 0:02:59]} 2. Nc3 {[%clk 0:03:00]}  d5 {[%clk 0:02:59]} 3. Bf4 {[%clk 0:03:00]}  Bf5 {[%clk 0:02:58]} 4. f3 {[%clk 0:03:00]}  e6 {[%clk 0:02:45]} 5. g4 {[%clk 0:03:00]}  Bg6 {[%clk 0:02:42]} 6. h4 {[%clk 0:03:01]}  h5 {[%clk 0:02:41]} 7. g5 {[%clk 0:03:01]}  Nfd7 {[%clk 0:02:40]} 8. e4 {[%clk 0:03:02]}  Nb6 {[%clk 0:02:32]} 9. Bd3 {[%clk 0:02:43]}  Bb4 {[%clk 0:02:13]} 10. Ne2 {[%clk 0:02:42]}  dxe4 {[%clk 0:02:08]} 11. fxe4 {[%clk 0:02:39]}  Nc6 {[%clk 0:02:08]} 12. a3 {[%clk 0:02:38]}  Bxc3+ {[%clk 0:01:33]} 13. bxc3 {[%clk 0:02:38]}  O-O {[%clk 0:01:33]} 14. O-O {[%clk 0:02:30]}  e5 {[%clk 0:01:27]} 15. Be3 {[%clk 0:02:23]}  exd4 {[%clk 0:01:26]} 16. cxd4 {[%clk 0:02:22]}  Re8 {[%clk 0:01:18]} 17. Rf4 {[%clk 0:02:16]}  Nd5 {[%clk 0:01:16]} 18. exd5 {[%clk 0:02:12]}  Ne7 {[%clk 0:01:07]} 19. c4 {[%clk 0:02:08]}  Nxd5 {[%clk 0:01:01]} 20. cxd5 {[%clk 0:02:03]}  Rxe3 {[%clk 0:01:01]} 21. Bxg6 {[%clk 0:02:02]}  fxg6 {[%clk 0:01:02]} 22. Qd2 {[%clk 0:01:54]}  Qe7 {[%clk 0:00:56]} 23. Rf2 {[%clk 0:01:42]}  Re8 {[%clk 0:00:47]} 24. Nf4 {[%clk 0:01:39]}  Qe4 {[%clk 0:00:36]} 25. Raf1 {[%clk 0:01:30]}  Kh7 {[%clk 0:00:29]} 26. d6 {[%clk 0:01:08]}  cxd6 {[%clk 0:00:29]} 27. d5 {[%clk 0:01:08]}  Rg3+ {[%clk 0:00:29]} 28. Rg2 {[%clk 0:01:07]}  Rxa3 {[%clk 0:00:25]} 29. Re2 {[%clk 0:01:02]}  Re3 {[%clk 0:00:10]} 30. Rxe3 {[%clk 0:01:02]}  Qxe3+ {[%clk 0:00:11]} 31. Qxe3 {[%clk 0:01:03]}  Rxe3 {[%clk 0:00:11]} 32. Kg2 {[%clk 0:00:59]}  a5 {[%clk 0:00:07]} 33. Rb1 {[%clk 0:00:58]}  Re4 {[%clk 0:00:02]} 34. Kf3 {[%clk 0:00:55]}  Rb4 {[%clk 0:00:01]} 35. Rxb4 {[%clk 0:00:52]}  axb4 {[%clk 0:00:02]} 36. Ke4 {[%clk 0:00:51]}  b5 {[%clk 0:00:02]} 37. Kd3 {[%clk 0:00:51]}  Kg8 {[%clk 0:00:02]} 38. Kc2 {[%clk 0:00:47]}  Kf7 {[%clk 0:00:01]} 39. Kb3 {[%clk 0:00:48]}  Ke7 {[%clk 0:00:02]} 40. Kxb4 {[%clk 0:00:48]} 1-0


[Site "https://www.chess.com"]